[Event "*** SCC Grand Prix: Titled Tuesday Blitz"]
[Site "Chess.com"]
[Date "2020.07.07"]
[Round "3"]
[White "wadsy27"]
[Black "TheBigBoss04"]
[Result "0-1"]
[WhiteElo "2433"]
[BlackElo "2744"]
[TimeControl "180+1"]
[EndTime "10:27:06 PDT"]
[Termination "TheBigBoss04 won by resignation"]

1. c4 {[%clk 0:03:00.9]} 1... Nf6 {[%clk 0:02:49.4]} 2. g3 {[%clk 0:02:59.2]}
2... e5 {[%clk 0:02:42]} 3. Bg2 {[%clk 0:02:58.6]} 3... d5 {[%clk 0:02:42.6]} 4.
cxd5 {[%clk 0:02:58.2]} 4... Nxd5 {[%clk 0:02:43.5]} 5. Nc3 {[%clk 0:02:58.5]}
5... Nb6 {[%clk 0:02:44.2]} 6. Nf3 {[%clk 0:02:58.4]} 6... Nc6 {[%clk
0:02:44.3]} 7. O-O {[%clk 0:02:58.9]} 7... Be7 {[%clk 0:02:43.5]} 8. a3 {[%clk
0:02:59.4]} 8... O-O {[%clk 0:02:31.5]} 9. b4 {[%clk 0:02:54.2]} 9... Be6 {[%clk
0:02:30.6]} 10. Rb1 {[%clk 0:02:50.6]} 10... f6 {[%clk 0:02:14.8]} 11. b5 {[%clk
0:02:49.8]} 11... Nd4 {[%clk 0:02:08.6]} 12. e3 {[%clk 0:02:48.1]} 12... Nxf3+
{[%clk 0:02:05.5]} 13. Bxf3 {[%clk 0:02:49]} 13... Nd5 {[%clk 0:01:57.6]} 14.
Nxd5 {[%clk 0:02:45.8]} 14... Bxd5 {[%clk 0:01:58.5]} 15. Bxd5+ {[%clk
0:02:45.6]} 15... Qxd5 {[%clk 0:01:56.7]} 16. Qb3 {[%clk 0:02:46.2]} 16... Rfd8
{[%clk 0:01:55.8]} 17. Rd1 {[%clk 0:02:44.8]} 17... Qxb3 {[%clk 0:01:48.6]} 18.
Rxb3 {[%clk 0:02:44.2]} 18... Rd5 {[%clk 0:01:49.2]} 19. Bb2 {[%clk 0:02:38.6]}
19... Rad8 {[%clk 0:01:47]} 20. d4 {[%clk 0:02:38.3]} 20... Bc5 {[%clk
0:01:29.6]} 21. e4 {[%clk 0:02:22.3]} 21... R5d7 {[%clk 0:01:28.9]} 22. d5
{[%clk 0:02:21]} 22... f5 {[%clk 0:01:12.1]} 23. exf5 {[%clk 0:01:46.6]} 23...
Rxd5 {[%clk 0:01:10.4]} 24. Rxd5 {[%clk 0:01:46.1]} 24... Rxd5 {[%clk
0:01:11.3]} 25. Rc3 {[%clk 0:01:32.3]} 25... Bd4 {[%clk 0:00:55.5]} 26. Rd3
{[%clk 0:01:16.5]} 26... Bxf2+ {[%clk 0:00:55.1]} 27. Kxf2 {[%clk 0:01:15.1]}
27... Rxd3 {[%clk 0:00:56]} 28. Bxe5 {[%clk 0:01:15.4]} 28... Rxa3 {[%clk
0:00:52.9]} 29. Bxc7 {[%clk 0:01:15.5]} 29... Rb3 {[%clk 0:00:52.4]} 30. b6
{[%clk 0:01:13.6]} 30... a5 {[%clk 0:00:52.5]} 31. Kg2 {[%clk 0:01:12.3]} 0-1

[Event "*** SCC Grand Prix: Titled Tuesday Blitz"]
[Site "Chess.com"]
[Date "2020.07.07"]
[Round "3"]
[White "luizwas"]
[Black "EfM13"]
[Result "1-0"]
[WhiteElo "1819"]
[BlackElo "2198"]
[TimeControl "180+1"]
[EndTime "10:27:07 PDT"]
[Termination "luizwas won by resignation"]

1. e4 {[%clk 0:03:00.9]} 1... g6 {[%clk 0:02:45.4]} 2. d4 {[%clk 0:03:00.2]}
2... Bg7 {[%clk 0:02:46.3]} 3. Nf3 {[%clk 0:02:59.1]} 3... d6 {[%clk 0:02:46.5]}
4. Nc3 {[%clk 0:02:59.5]} 4... Nf6 {[%clk 0:02:45.8]} 5. Be3 {[%clk 0:02:58.1]}
5... O-O {[%clk 0:02:45.6]} 6. Qd2 {[%clk 0:02:58.6]} 6... Nbd7 {[%clk
0:02:43.3]} 7. Bh6 {[%clk 0:02:57.3]} 7... e5 {[%clk 0:02:40.2]} 8. h4 {[%clk
0:02:49.6]} 8... exd4 {[%clk 0:02:28.7]} 9. Nxd4 {[%clk 0:02:50.5]} 9... Ne5
{[%clk 0:02:27.9]} 10. h5 {[%clk 0:02:46.5]} 10... Nxh5 {[%clk 0:02:26.3]} 11.
Bxg7 {[%clk 0:02:45.8]} 11... Kxg7 {[%clk 0:02:20.2]} 12. Be2 {[%clk 0:02:42.4]}
12... Bg4 {[%clk 0:02:15.6]} 13. f3 {[%clk 0:02:39.8]} 13... Rh8 {[%clk
0:01:19.8]} 14. fxg4 {[%clk 0:02:36]} 14... Ng3 {[%clk 0:01:20.2]} 15. Qh6+
{[%clk 0:01:57.1]} 15... Kg8 {[%clk 0:01:11.7]} 16. g5 {[%clk 0:01:52.8]} 16...
Nxh1 {[%clk 0:01:03]} 17. Nd5 {[%clk 0:01:51]} 17... Nd7 {[%clk 0:00:58]} 18.
Bg4 {[%clk 0:01:43]} 18... c6 {[%clk 0:00:57.8]} 19. Bxd7 {[%clk 0:01:27.9]}
19... cxd5 {[%clk 0:00:57.2]} 20. Ne6 {[%clk 0:01:23.9]} 20... Qa5+ {[%clk
0:00:45.6]} 21. c3 {[%clk 0:01:18.7]} 1-0

[Event "*** SCC Grand Prix: Titled Tuesday Blitz"]
[Site "Chess.com"]
[Date "2020.07.07"]
[Round "3"]
[White "AccioChess"]
[Black "AnishOnYoutube"]
[Result "0-1"]
[WhiteElo "2486"]
[BlackElo "2736"]
[TimeControl "180+1"]
[EndTime "10:27:15 PDT"]
[Termination "AnishOnYoutube won by resignation"]

1. e4 {[%clk 0:03:00.9]} 1... c5 {[%clk 0:02:57.3]} 2. Nf3 {[%clk 0:02:59]} 2...
e6 {[%clk 0:02:57.7]} 3. d4 {[%clk 0:02:55.4]} 3... cxd4 {[%clk 0:02:58.6]} 4.
Nxd4 {[%clk 0:02:56.2]} 4... a6 {[%clk 0:02:59.3]} 5. Nc3 {[%clk 0:02:56.6]}
5... Qc7 {[%clk 0:02:56.9]} 6. Bd3 {[%clk 0:02:55.2]} 6... Nf6 {[%clk
0:02:56.7]} 7. O-O {[%clk 0:02:38.6]} 7... d6 {[%clk 0:02:54.8]} 8. Be3 {[%clk
0:02:35.1]} 8... Nbd7 {[%clk 0:02:51.3]} 9. f4 {[%clk 0:02:32]} 9... Be7 {[%clk
0:02:48.1]} 10. Qe2 {[%clk 0:02:25.1]} 10... b5 {[%clk 0:02:39.9]} 11. a3 {[%clk
0:02:23.3]} 11... Bb7 {[%clk 0:02:39.6]} 12. Nb3 {[%clk 0:01:56.7]} 12... h5
{[%clk 0:02:37.4]} 13. h3 {[%clk 0:01:40]} 13... h4 {[%clk 0:02:37.4]} 14. Bd4
{[%clk 0:00:52.6]} 14... e5 {[%clk 0:02:35.3]} 15. fxe5 {[%clk 0:00:50.3]} 15...
dxe5 {[%clk 0:02:13]} 16. Be3 {[%clk 0:00:50.2]} 16... Nc5 {[%clk 0:02:12.8]}
17. Nxc5 {[%clk 0:00:47.2]} 17... Bxc5 {[%clk 0:02:12.7]} 18. Kh2 {[%clk
0:00:25.8]} 18... Bxe3 {[%clk 0:02:06.3]} 19. Qxe3 {[%clk 0:00:26.7]} 19... Kf8
{[%clk 0:02:02.3]} 20. Rf5 {[%clk 0:00:21.8]} 20... Re8 {[%clk 0:02:00.9]} 21.
Raf1 {[%clk 0:00:21]} 21... Rh6 {[%clk 0:01:59.2]} 22. Nd5 {[%clk 0:00:19.9]}
22... Bxd5 {[%clk 0:01:58.9]} 23. exd5 {[%clk 0:00:20.1]} 23... e4+ {[%clk
0:01:59.6]} 24. Kh1 {[%clk 0:00:15.2]} 24... exd3 {[%clk 0:01:58.7]} 25. Qxd3
{[%clk 0:00:15.6]} 25... Qd6 {[%clk 0:01:50]} 26. Qd4 {[%clk 0:00:12.9]} 26...
Kg8 {[%clk 0:01:47.9]} 27. b3 {[%clk 0:00:11.8]} 27... Ne4 {[%clk 0:01:44.9]}
0-1

[Event "*** SCC Grand Prix: Titled Tuesday Blitz"]
[Site "Chess.com"]
[Date "2020.07.07"]
[Round "3"]
[White "annamaja"]
[Black "mikheeva86"]
[Result "1-0"]
[WhiteElo "2249"]
[BlackElo "1910"]
[TimeControl "180+1"]
[EndTime "10:27:17 PDT"]
[Termination "annamaja won by resignation"]

1. e4 {[%clk 0:03:00.9]} 1... e5 {[%clk 0:02:59.8]} 2. Nf3 {[%clk 0:02:59.7]}
2... Nc6 {[%clk 0:02:59.9]} 3. Bb5 {[%clk 0:02:59.6]} 3... Nd4 {[%clk 0:02:58]}
4. Nxd4 {[%clk 0:02:57.9]} 4... exd4 {[%clk 0:02:57.5]} 5. d3 {[%clk 0:02:58]}
5... Bc5 {[%clk 0:02:55.4]} 6. Qh5 {[%clk 0:02:53.8]} 6... Qe7 {[%clk
0:02:48.6]} 7. Bg5 {[%clk 0:02:47.6]} 7... Qd6 {[%clk 0:02:41.7]} 8. Bc4 {[%clk
0:02:38.5]} 8... g6 {[%clk 0:02:36.8]} 9. Qf3 {[%clk 0:02:38.5]} 9... f5 {[%clk
0:02:19.2]} 10. exf5 {[%clk 0:02:13.9]} 10... Qe5+ {[%clk 0:02:17.8]} 11. Kd1
{[%clk 0:02:13.1]} 11... Qxf5 {[%clk 0:02:14.6]} 12. Re1+ {[%clk 0:02:06.2]}
12... Ne7 {[%clk 0:02:09.9]} 13. Qg3 {[%clk 0:01:45.4]} 13... Kd8 {[%clk
0:01:31.2]} 14. Re5 {[%clk 0:01:40.8]} 14... Bd6 {[%clk 0:01:23.8]} 15. Bxe7+
{[%clk 0:01:36]} 15... Bxe7 {[%clk 0:01:06.8]} 16. Rxf5 {[%clk 0:01:35.5]} 16...
gxf5 {[%clk 0:01:05.6]} 17. Nd2 {[%clk 0:01:35]} 17... d6 {[%clk 0:01:01.9]} 18.
Nf3 {[%clk 0:01:33.1]} 18... Bf6 {[%clk 0:00:56]} 19. Qf4 {[%clk 0:01:27.1]}
19... Re8 {[%clk 0:00:50]} 20. Nxd4 {[%clk 0:01:20.4]} 20... Bxd4 {[%clk
0:00:20.8]} 21. Qxd4 {[%clk 0:01:21.3]} 21... f4 {[%clk 0:00:19.1]} 22. Qf6+
{[%clk 0:01:21.1]} 22... Kd7 {[%clk 0:00:18.2]} 1-0

[Event "*** SCC Grand Prix: Titled Tuesday Blitz"]
[Site "Chess.com"]
[Date "2020.07.07"]
[Round "3"]
[White "bgfbfbgfbgfgf"]
[Black "GigaQuparadze"]
[Result "0-1"]
[WhiteElo "2635"]
[BlackElo "2881"]
[TimeControl "180+1"]
[EndTime "10:27:20 PDT"]
[Termination "GigaQuparadze won by resignation"]

1. e4 {[%clk 0:03:00.9]} 1... c5 {[%clk 0:02:30]} 2. Nc3 {[%clk 0:03:00.5]} 2...
Nc6 {[%clk 0:02:29.5]} 3. Nge2 {[%clk 0:03:00.3]} 3... e6 {[%clk 0:02:29.4]} 4.
g3 {[%clk 0:02:58.4]} 4... a6 {[%clk 0:02:29.3]} 5. Bg2 {[%clk 0:02:56.4]} 5...
Nf6 {[%clk 0:02:29.6]} 6. O-O {[%clk 0:02:53.4]} 6... d6 {[%clk 0:02:29.3]} 7.
d4 {[%clk 0:02:53.5]} 7... cxd4 {[%clk 0:02:30.1]} 8. Nxd4 {[%clk 0:02:54.4]}
8... Bd7 {[%clk 0:02:30.5]} 9. Re1 {[%clk 0:02:53]} 9... Rc8 {[%clk 0:02:29.8]}
10. h3 {[%clk 0:02:50]} 10... Be7 {[%clk 0:02:29.1]} 11. g4 {[%clk 0:02:50.2]}
11... h6 {[%clk 0:02:24.8]} 12. Nde2 {[%clk 0:02:41.2]} 12... Ne5 {[%clk
0:02:24.3]} 13. Ng3 {[%clk 0:02:23.3]} 13... g5 {[%clk 0:02:22.8]} 14. a4 {[%clk
0:01:56.5]} 14... Qc7 {[%clk 0:02:20.9]} 15. Rb1 {[%clk 0:01:11.8]} 15... b5
{[%clk 0:02:17.5]} 16. axb5 {[%clk 0:01:03.1]} 16... axb5 {[%clk 0:02:18.4]} 17.
Be3 {[%clk 0:00:56.2]} 17... b4 {[%clk 0:02:17.9]} 18. Na2 {[%clk 0:00:56.1]}
18... Rb8 {[%clk 0:02:08]} 19. Nc1 {[%clk 0:00:46.9]} 19... Nc4 {[%clk
0:02:06.8]} 20. Bd4 {[%clk 0:00:45.6]} 20... e5 {[%clk 0:02:04.4]} 21. Be3
{[%clk 0:00:45.6]} 21... Nxe3 {[%clk 0:02:04.4]} 22. Rxe3 {[%clk 0:00:46.5]}
22... h5 {[%clk 0:02:04.4]} 23. gxh5 {[%clk 0:00:31.3]} 23... g4 {[%clk
0:02:04.3]} 24. hxg4 {[%clk 0:00:22.6]} 24... Nxg4 {[%clk 0:02:01.6]} 25. Re1
{[%clk 0:00:15.5]} 25... Rc8 {[%clk 0:01:57.6]} 26. Nd3 {[%clk 0:00:15.3]} 26...
Qb6 {[%clk 0:01:52.4]} 27. Qd2 {[%clk 0:00:11.1]} 27... Rc4 {[%clk 0:01:46.4]}
28. b3 {[%clk 0:00:09.3]} 28... Rd4 {[%clk 0:01:46.3]} 29. Ne2 {[%clk
0:00:08.7]} 29... Rxd3 {[%clk 0:01:45.5]} 0-1

[Event "*** SCC Grand Prix: Titled Tuesday Blitz"]
[Site "Chess.com"]
[Date "2020.07.07"]
[Round "3"]
[White "Lenyas66"]
[Black "politeplayer"]
[Result "1-0"]
[WhiteElo "2498"]
[BlackElo "2231"]
[TimeControl "180+1"]
[EndTime "10:27:22 PDT"]
[Termination "Lenyas66 won by checkmate"]

1. e4 {[%clk 0:03:00.9]} 1... e6 {[%clk 0:02:58.5]} 2. d4 {[%clk 0:03:00.5]}
2... d5 {[%clk 0:02:59]} 3. Nd2 {[%clk 0:03:00.6]} 3... dxe4 {[%clk 0:02:59]} 4.
Nxe4 {[%clk 0:03:00.8]} 4... Nd7 {[%clk 0:02:59.5]} 5. Nf3 {[%clk 0:03:00.4]}
5... Ngf6 {[%clk 0:02:59.4]} 6. Nxf6+ {[%clk 0:02:59.9]} 6... Nxf6 {[%clk
0:02:58.9]} 7. Bd3 {[%clk 0:02:58.9]} 7... c5 {[%clk 0:02:58.5]} 8. O-O {[%clk
0:02:57]} 8... cxd4 {[%clk 0:02:57.7]} 9. Nxd4 {[%clk 0:02:57]} 9... Bc5 {[%clk
0:02:54.1]} 10. Nb3 {[%clk 0:02:56.5]} 10... Bb6 {[%clk 0:02:52.1]} 11. Qf3
{[%clk 0:02:49.6]} 11... Qd5 {[%clk 0:02:46]} 12. Qg3 {[%clk 0:02:48.8]} 12...
Bd7 {[%clk 0:02:31.1]} 13. c4 {[%clk 0:02:46.4]} 13... Qc6 {[%clk 0:02:06.7]}
14. Bg5 {[%clk 0:02:34.9]} 14... h6 {[%clk 0:01:53]} 15. Bxf6 {[%clk 0:02:07.2]}
15... gxf6 {[%clk 0:01:52.8]} 16. c5 {[%clk 0:02:03.6]} 16... Bc7 {[%clk
0:01:49.4]} 17. Qh4 {[%clk 0:02:02.9]} 17... O-O-O {[%clk 0:01:17.5]} 18. Be4
{[%clk 0:02:00.8]} 18... Qa4 {[%clk 0:01:14.3]} 19. Rac1 {[%clk 0:01:08.1]}
19... f5 {[%clk 0:01:05.4]} 20. Bxb7+ {[%clk 0:01:06]} 20... Kb8 {[%clk
0:00:44.1]} 21. Rc4 {[%clk 0:01:04.7]} 21... Qxa2 {[%clk 0:00:38.7]} 22. Rb4
{[%clk 0:01:04.5]} 22... a5 {[%clk 0:00:35]} 23. Bc6+ {[%clk 0:01:03.1]} 23...
axb4 {[%clk 0:00:33.3]} 24. Qxb4+ {[%clk 0:01:02.2]} 24... Kc8 {[%clk
0:00:33.1]} 25. Qb7# {[%clk 0:01:02.2]} 1-0

[Event "*** SCC Grand Prix: Titled Tuesday Blitz"]
[Site "Chess.com"]
[Date "2020.07.07"]
[Round "3"]
[White "StephenDedalus83"]
[Black "yamalchess"]
[Result "1-0"]
[WhiteElo "2806"]
[BlackElo "2446"]
[TimeControl "180+1"]
[EndTime "10:27:24 PDT"]
[Termination "StephenDedalus83 won by resignation"]

1. e4 {[%clk 0:03:00.9]} 1... e5 {[%clk 0:02:59.1]} 2. Nf3 {[%clk 0:03:00]} 2...
Nc6 {[%clk 0:02:59.1]} 3. Bb5 {[%clk 0:02:59.8]} 3... a6 {[%clk 0:02:59.3]} 4.
Ba4 {[%clk 0:02:59.7]} 4... Nf6 {[%clk 0:02:59.8]} 5. O-O {[%clk 0:02:59]} 5...
b5 {[%clk 0:03:00.4]} 6. Bb3 {[%clk 0:02:58.3]} 6... Bb7 {[%clk 0:03:01]} 7. d3
{[%clk 0:02:55.9]} 7... Bd6 {[%clk 0:03:00.4]} 8. a4 {[%clk 0:02:47.9]} 8... h6
{[%clk 0:02:57.9]} 9. Nc3 {[%clk 0:02:46.2]} 9... Na5 {[%clk 0:02:55.3]} 10.
axb5 {[%clk 0:02:41.4]} 10... Nxb3 {[%clk 0:02:53.4]} 11. cxb3 {[%clk
0:02:40.8]} 11... O-O {[%clk 0:02:50.5]} 12. Re1 {[%clk 0:02:35.5]} 12... axb5
{[%clk 0:02:35]} 13. Rxa8 {[%clk 0:02:34.2]} 13... Bxa8 {[%clk 0:02:33.3]} 14.
Nxb5 {[%clk 0:02:34.8]} 14... Bc5 {[%clk 0:02:27.7]} 15. Nxe5 {[%clk 0:02:27.3]}
15... d5 {[%clk 0:02:27.7]} 16. Nc3 {[%clk 0:01:56.3]} 16... dxe4 {[%clk
0:02:23.1]} 17. dxe4 {[%clk 0:01:55.7]} 17... Nxe4 {[%clk 0:01:42.9]} 18. Nxe4
{[%clk 0:01:52]} 18... Qxd1 {[%clk 0:01:10.1]} 19. Rxd1 {[%clk 0:01:51.3]} 19...
Bxe4 {[%clk 0:01:08.5]} 20. Nd7 {[%clk 0:01:51.2]} 20... Bc2 {[%clk 0:01:03.7]}
21. Rf1 {[%clk 0:01:48.7]} 21... Bd6 {[%clk 0:00:43.1]} 22. Nxf8 {[%clk
0:01:46.7]} 22... Kxf8 {[%clk 0:00:43.3]} 23. b4 {[%clk 0:01:42.9]} 23... Bxb4
{[%clk 0:00:42.2]} 24. Bf4 {[%clk 0:01:42.8]} 24... c6 {[%clk 0:00:39.8]} 25.
Rc1 {[%clk 0:01:38.5]} 25... Ba4 {[%clk 0:00:17.2]} 26. Rc4 {[%clk 0:01:36.1]}
26... c5 {[%clk 0:00:15.9]} 27. Bd6+ {[%clk 0:01:36.1]} 27... Ke8 {[%clk
0:00:15.8]} 28. Bxc5 {[%clk 0:01:36.6]} 1-0

[Event "*** SCC Grand Prix: Titled Tuesday Blitz"]
[Site "Chess.com"]
[Date "2020.07.07"]
[Round "3"]
[White "Shubinkirill2003"]
[Black "jerry_77"]
[Result "1-0"]
[WhiteElo "2616"]
[BlackElo "2411"]
[TimeControl "180+1"]
[EndTime "10:27:28 PDT"]
[Termination "Shubinkirill2003 won by resignation"]

1. e4 {[%clk 0:03:00.9]} 1... c6 {[%clk 0:02:58.4]} 2. d4 {[%clk 0:03:00.7]}
2... d5 {[%clk 0:02:57]} 3. exd5 {[%clk 0:03:01.6]} 3... cxd5 {[%clk 0:02:57.9]}
4. Bd3 {[%clk 0:03:02.2]} 4... Nc6 {[%clk 0:02:58.5]} 5. c3 {[%clk 0:03:02.8]}
5... Nf6 {[%clk 0:02:59.4]} 6. Bf4 {[%clk 0:03:03.2]} 6... Qb6 {[%clk
0:02:58.2]} 7. Qb3 {[%clk 0:03:02.5]} 7... Qxb3 {[%clk 0:02:58.3]} 8. axb3
{[%clk 0:03:03.4]} 8... e6 {[%clk 0:02:59.2]} 9. b4 {[%clk 0:03:03.1]} 9... Kd7
{[%clk 0:02:57.2]} 10. b5 {[%clk 0:02:57.3]} 10... Ne7 {[%clk 0:02:55.5]} 11.
Nf3 {[%clk 0:02:50.5]} 11... Ng6 {[%clk 0:02:54.8]} 12. Bg3 {[%clk 0:02:39.3]}
12... Bd6 {[%clk 0:02:54.2]} 13. Nbd2 {[%clk 0:02:29.7]} 13... b6 {[%clk
0:02:52.5]} 14. O-O {[%clk 0:02:15.8]} 14... Bxg3 {[%clk 0:02:36]} 15. hxg3
{[%clk 0:02:16.7]} 15... Bb7 {[%clk 0:02:36.3]} 16. Ra2 {[%clk 0:02:05.5]} 16...
Rhe8 {[%clk 0:01:47.3]} 17. Rfa1 {[%clk 0:01:59.3]} 17... e5 {[%clk 0:01:46.9]}
18. Bxg6 {[%clk 0:01:56.7]} 18... hxg6 {[%clk 0:01:41]} 19. Nxe5+ {[%clk
0:01:56.7]} 19... Kc7 {[%clk 0:01:41.4]} 20. Rxa7 {[%clk 0:01:55]} 20... Rad8
{[%clk 0:01:39.5]} 21. Ndf3 {[%clk 0:01:47]} 21... Ne4 {[%clk 0:01:37.9]} 22.
Nxf7 {[%clk 0:01:42.7]} 22... Rd7 {[%clk 0:01:36.5]} 23. N7e5 {[%clk 0:01:42.7]}
23... Rde7 {[%clk 0:01:36.9]} 24. Nc6 {[%clk 0:01:42.7]} 24... Re6 {[%clk
0:01:34.5]} 25. Nb4 {[%clk 0:01:20.2]} 25... g5 {[%clk 0:01:22.2]} 26. Ne5
{[%clk 0:01:11.6]} 26... Rh8 {[%clk 0:01:13.4]} 27. Nxd5+ {[%clk 0:00:57.6]}
27... Kb8 {[%clk 0:01:09.7]} 28. Nd7+ {[%clk 0:00:56.9]} 28... Kc8 {[%clk
0:01:09.6]} 29. N7xb6+ {[%clk 0:00:56]} 29... Kb8 {[%clk 0:01:09.5]} 30. Ra8+
{[%clk 0:00:54.6]} 30... Bxa8 {[%clk 0:01:07.6]} 31. Rxa8+ {[%clk 0:00:55.5]}
31... Kb7 {[%clk 0:01:08.1]} 32. Rxh8 {[%clk 0:00:55.7]} 32... Nd2 {[%clk
0:01:06.5]} 33. f3 {[%clk 0:00:48.6]} 1-0

[Event "*** SCC Grand Prix: Titled Tuesday Blitz"]
[Site "Chess.com"]
[Date "2020.07.07"]
[Round "3"]
[White "hanzo_hasashi1"]
[Black "Rodalquilar"]
[Result "1-0"]
[WhiteElo "2839"]
[BlackElo "2626"]
[TimeControl "180+1"]
[EndTime "10:27:29 PDT"]
[Termination "hanzo_hasashi1 won on time"]

1. d4 {[%clk 0:02:59.9]} 1... d5 {[%clk 0:02:59.9]} 2. c4 {[%clk 0:02:59.2]}
2... e6 {[%clk 0:03:00.4]} 3. Nc3 {[%clk 0:02:57.8]} 3... a6 {[%clk 0:03:00.6]}
4. cxd5 {[%clk 0:02:47.7]} 4... exd5 {[%clk 0:03:01.5]} 5. Bf4 {[%clk
0:02:47.3]} 5... Nf6 {[%clk 0:02:59.6]} 6. e3 {[%clk 0:02:46.4]} 6... Bd6 {[%clk
0:02:58]} 7. Bxd6 {[%clk 0:02:41]} 7... Qxd6 {[%clk 0:02:57.8]} 8. Bd3 {[%clk
0:02:40.9]} 8... Bg4 {[%clk 0:02:48.4]} 9. Qb3 {[%clk 0:02:37.3]} 9... Nc6
{[%clk 0:02:32.9]} 10. h3 {[%clk 0:02:31.6]} 10... Bh5 {[%clk 0:02:28.7]} 11. g4
{[%clk 0:02:27.6]} 11... Bg6 {[%clk 0:02:28.6]} 12. O-O-O {[%clk 0:02:17.6]}
12... O-O-O {[%clk 0:02:08.8]} 13. Bxg6 {[%clk 0:02:08.4]} 13... hxg6 {[%clk
0:02:08.6]} 14. Nge2 {[%clk 0:02:07.7]} 14... g5 {[%clk 0:02:01.3]} 15. Ng3
{[%clk 0:02:01.4]} 15... g6 {[%clk 0:01:58.8]} 16. Kb1 {[%clk 0:02:00.1]} 16...
Rh7 {[%clk 0:01:46.9]} 17. e4 {[%clk 0:01:56.3]} 17... dxe4 {[%clk 0:01:19.7]}
18. Ncxe4 {[%clk 0:01:55]} 18... Nxe4 {[%clk 0:01:20]} 19. Nxe4 {[%clk
0:01:54.2]} 19... Qf4 {[%clk 0:01:14.6]} 20. Rhe1 {[%clk 0:01:47.1]} 20... Nxd4
{[%clk 0:00:11.5]} 21. Rxd4 {[%clk 0:01:35.4]} 21... Rxd4 {[%clk 0:00:10.2]} 22.
Nc5 {[%clk 0:01:35.8]} 22... b6 {[%clk 0:00:07.9]} 23. Re8+ {[%clk 0:01:29.9]}
23... Rd8 {[%clk 0:00:06.8]} 24. Qd5 {[%clk 0:01:30.2]} 1-0

[Event "*** SCC Grand Prix: Titled Tuesday Blitz"]
[Site "Chess.com"]
[Date "2020.07.07"]
[Round "3"]
[White "Lagmantr"]
[Black "Izoria123"]
[Result "0-1"]
[WhiteElo "2652"]
[BlackElo "2908"]
[TimeControl "180+1"]
[EndTime "10:27:31 PDT"]
[Termination "Izoria123 won by resignation"]

1. d4 {[%clk 0:03:00.9]} 1... d6 {[%clk 0:02:59.8]} 2. e4 {[%clk 0:02:59.9]}
2... g6 {[%clk 0:02:59.6]} 3. g3 {[%clk 0:02:55.9]} 3... Bg7 {[%clk 0:02:57.1]}
4. Bg2 {[%clk 0:02:56.2]} 4... c5 {[%clk 0:02:55.2]} 5. Ne2 {[%clk 0:02:56.2]}
5... cxd4 {[%clk 0:02:54.7]} 6. Nxd4 {[%clk 0:02:57.1]} 6... Nc6 {[%clk
0:02:54.8]} 7. Nxc6 {[%clk 0:02:57]} 7... bxc6 {[%clk 0:02:55.7]} 8. O-O {[%clk
0:02:57.2]} 8... Qc7 {[%clk 0:02:53.4]} 9. f4 {[%clk 0:02:50.4]} 9... Nf6 {[%clk
0:02:45.8]} 10. Nc3 {[%clk 0:02:28.4]} 10... O-O {[%clk 0:02:45]} 11. Kh1 {[%clk
0:02:28.3]} 11... Rb8 {[%clk 0:02:39.4]} 12. Qf3 {[%clk 0:01:36.4]} 12... d5
{[%clk 0:02:07.7]} 13. e5 {[%clk 0:01:29.9]} 13... Nd7 {[%clk 0:02:08]} 14. b3
{[%clk 0:01:25.5]} 14... f6 {[%clk 0:02:07.3]} 15. exf6 {[%clk 0:01:19.7]} 15...
Nxf6 {[%clk 0:02:05.9]} 16. Bb2 {[%clk 0:01:16.6]} 16... Bf5 {[%clk 0:02:04.4]}
17. Qe2 {[%clk 0:01:09.2]} 17... e5 {[%clk 0:01:59.5]} 18. fxe5 {[%clk
0:00:37.7]} 18... Ng4 {[%clk 0:01:58.7]} 19. Rae1 {[%clk 0:00:35.6]} 19... Rbe8
{[%clk 0:01:53.8]} 20. Rxf5 {[%clk 0:00:15.6]} 20... gxf5 {[%clk 0:01:53]} 21.
e6 {[%clk 0:00:16]} 21... Qa5 {[%clk 0:01:43.5]} 22. Na4 {[%clk 0:00:07.7]}
22... Bxb2 {[%clk 0:01:35.6]} 23. Nxb2 {[%clk 0:00:08.6]} 23... Rf6 {[%clk
0:01:35.6]} 24. e7 {[%clk 0:00:08.7]} 24... Rf7 {[%clk 0:01:35.8]} 25. Qe6
{[%clk 0:00:08.7]} 25... Rxe7 {[%clk 0:01:34.8]} 26. Qc8+ {[%clk 0:00:08.6]}
26... Kg7 {[%clk 0:01:34.9]} 27. Rf1 {[%clk 0:00:04.9]} 27... Ne3 {[%clk
0:01:30.9]} 28. Rf3 {[%clk 0:00:02.7]} 28... Qe1+ {[%clk 0:01:29.2]} 0-1

[Event "*** SCC Grand Prix: Titled Tuesday Blitz"]
[Site "Chess.com"]
[Date "2020.07.07"]
[Round "3"]
[White "AliKa2810"]
[Black "goofypenguin96"]
[Result "1-0"]
[WhiteElo "2585"]
[BlackElo "2389"]
[TimeControl "180+1"]
[EndTime "10:27:31 PDT"]
[Termination "AliKa2810 won by resignation"]

1. d4 {[%clk 0:03:00.9]} 1... d5 {[%clk 0:02:58.6]} 2. c4 {[%clk 0:03:01]} 2...
c6 {[%clk 0:02:56.1]} 3. cxd5 {[%clk 0:03:01.3]} 3... cxd5 {[%clk 0:02:57]} 4.
Bg5 {[%clk 0:03:01.6]} 4... Nf6 {[%clk 0:02:56.9]} 5. Bxf6 {[%clk 0:03:01.3]}
5... exf6 {[%clk 0:02:57.8]} 6. Nc3 {[%clk 0:03:01.9]} 6... Nc6 {[%clk
0:02:55.7]} 7. e3 {[%clk 0:03:02.2]} 7... Be6 {[%clk 0:02:52.3]} 8. g3 {[%clk
0:02:58.8]} 8... Bb4 {[%clk 0:02:47.7]} 9. Ne2 {[%clk 0:02:58.5]} 9... O-O
{[%clk 0:02:45.5]} 10. Bg2 {[%clk 0:02:58.9]} 10... Rc8 {[%clk 0:02:41.3]} 11.
O-O {[%clk 0:02:59]} 11... Re8 {[%clk 0:02:40.5]} 12. Rc1 {[%clk 0:02:57.4]}
12... Bxc3 {[%clk 0:02:05]} 13. Rxc3 {[%clk 0:02:54]} 13... Qd7 {[%clk
0:02:01.2]} 14. Nf4 {[%clk 0:02:52.2]} 14... Ne7 {[%clk 0:01:57.6]} 15. Rxc8
{[%clk 0:02:33.2]} 15... Rxc8 {[%clk 0:01:58.5]} 16. Qb3 {[%clk 0:02:33.5]}
16... Rd8 {[%clk 0:01:49.2]} 17. Rc1 {[%clk 0:02:32]} 17... Ng6 {[%clk
0:01:46.9]} 18. Nd3 {[%clk 0:02:15.6]} 18... b6 {[%clk 0:01:46.8]} 19. Qc3
{[%clk 0:01:54.2]} 19... h5 {[%clk 0:01:41.2]} 20. h4 {[%clk 0:01:50.2]} 20...
Ne7 {[%clk 0:01:37.4]} 21. Qc7 {[%clk 0:01:41.2]} 21... Rc8 {[%clk 0:01:33.6]}
22. Qxd7 {[%clk 0:01:40.3]} 22... Bxd7 {[%clk 0:01:34.1]} 23. Rxc8+ {[%clk
0:01:39.6]} 23... Bxc8 {[%clk 0:01:33.4]} 24. Nf4 {[%clk 0:01:39.8]} 24... g6
{[%clk 0:01:26.9]} 25. Nxd5 {[%clk 0:01:39]} 25... Nxd5 {[%clk 0:01:25.9]} 26.
Bxd5 {[%clk 0:01:39.9]} 26... Kf8 {[%clk 0:01:24]} 27. Kf1 {[%clk 0:01:35]}
27... Be6 {[%clk 0:01:17.7]} 28. Bxe6 {[%clk 0:01:31.8]} 28... fxe6 {[%clk
0:01:18.6]} 29. Ke2 {[%clk 0:01:28.3]} 29... b5 {[%clk 0:01:14.7]} 30. e4 {[%clk
0:01:27.6]} 30... g5 {[%clk 0:01:11.3]} 31. Kd3 {[%clk 0:01:24.3]} 31... gxh4
{[%clk 0:01:08.6]} 32. gxh4 {[%clk 0:01:25.2]} 32... Ke7 {[%clk 0:01:07]} 33.
Kc3 {[%clk 0:01:25]} 33... a5 {[%clk 0:01:03.7]} 34. a4 {[%clk 0:01:21.3]} 34...
bxa4 {[%clk 0:00:55.9]} 35. Kc4 {[%clk 0:01:21.3]} 35... Kd6 {[%clk 0:00:48.6]}
36. Kb5 {[%clk 0:01:21]} 36... a3 {[%clk 0:00:46.9]} 37. bxa3 {[%clk 0:01:20.8]}
37... f5 {[%clk 0:00:44.4]} 38. f3 {[%clk 0:01:20.6]} 1-0